[Event "Titled Tuesday Blitz February 15 Late 2022"]
[White "Moiseenko, Alexander"]
[Black "Polanco Nunez, Yoel Estarling"]
[WhiteFideId "14102560"]
[BlackFideId "6401783"]
[WhiteElo "2577"]
[BlackElo "2132"]
[Result "1-0"]
[Round "01"]
[TimeControl "180+1"]
[Date "2022.02.16"]
[WhiteClock "0:00:43"]
[BlackClock "0:00:07"]

1. d4 {[%clk 0:03:00]}  Nf6 {[%clk 0:02:53]} 2. Bg5 {[%clk 0:03:00]}  d5 {[%clk 0:02:52]} 3. Bxf6 {[%clk 0:02:59]}  exf6 {[%clk 0:02:53]} 4. e3 {[%clk 0:02:59]}  Bd6 {[%clk 0:02:51]} 5. c4 {[%clk 0:02:51]}  dxc4 {[%clk 0:02:50]} 6. Bxc4 {[%clk 0:02:52]}  O-O {[%clk 0:02:49]} 7. Nc3 {[%clk 0:02:52]}  Nd7 {[%clk 0:02:45]} 8. Qc2 {[%clk 0:02:49]}  c6 {[%clk 0:02:41]} 9. Nf3 {[%clk 0:02:47]}  Qe7 {[%clk 0:02:37]} 10. O-O-O {[%clk 0:02:41]}  Re8 {[%clk 0:02:27]} 11. h3 {[%clk 0:02:30]}  Nf8 {[%clk 0:02:24]} 12. Kb1 {[%clk 0:02:27]}  Be6 {[%clk 0:02:15]} 13. Bxe6 {[%clk 0:02:24]}  fxe6 {[%clk 0:02:08]} 14. Ne4 {[%clk 0:02:17]}  Nd7 {[%clk 0:01:55]} 15. g4 {[%clk 0:02:08]}  a5 {[%clk 0:01:48]} 16. Rhg1 {[%clk 0:02:06]}  a4 {[%clk 0:01:47]} 17. a3 {[%clk 0:02:06]}  Nb6 {[%clk 0:01:43]} 18. g5 {[%clk 0:02:04]}  f5 {[%clk 0:01:36]} 19. Nf6+ {[%clk 0:02:03]}  Kh8 {[%clk 0:01:17]} 20. Nxe8 {[%clk 0:02:03]}  Rxe8 {[%clk 0:01:17]} 21. Ne5 {[%clk 0:01:44]}  Ra8 {[%clk 0:01:11]} 22. g6 {[%clk 0:01:31]}  Nd5 {[%clk 0:00:46]} 23. Nf7+ {[%clk 0:01:25]}  Kg8 {[%clk 0:00:45]} 24. e4 {[%clk 0:01:15]}  fxe4 {[%clk 0:00:16]} 25. Qxe4 {[%clk 0:01:11]}  hxg6 {[%clk 0:00:17]} 26. Nxd6 {[%clk 0:01:06]}  Qxd6 {[%clk 0:00:17]} 27. Rxg6 {[%clk 0:01:00]}  Ra6 {[%clk 0:00:08]} 28. Rdg1 {[%clk 0:00:43]}  Nc3+ {[%clk 0:00:07]} 29. bxc3 {[%clk 0:00:43]}  Rb6+ {[%clk 0:00:07]} 30. Kc2 {[%clk 0:00:43]} 1-0


[Site "https://www.chess.com"]

[Event "Titled Tuesday Blitz February 15 Late 2022"]
[White "Moral Garcia, Serafin"]
[Black "Cori T., Deysi"]
[WhiteFideId "2201925"]
[BlackFideId "3801934"]
[WhiteElo "2228"]
[BlackElo "2350"]
[Result "0-1"]
[Round "01"]
[TimeControl "180+1"]
[Date "2022.02.16"]
[WhiteClock "0:00:12"]
[BlackClock "0:00:04"]

1. c4 {[%clk 0:02:58]}  g6 {[%clk 0:02:59]} 2. Nc3 {[%clk 0:02:57]}  Bg7 {[%clk 0:03:00]} 3. d3 {[%clk 0:02:56]}  d6 {[%clk 0:03:00]} 4. g3 {[%clk 0:02:57]}  f5 {[%clk 0:02:59]} 5. Bg2 {[%clk 0:02:57]}  Nf6 {[%clk 0:03:00]} 6. Nf3 {[%clk 0:02:51]}  c6 {[%clk 0:02:58]} 7. O-O {[%clk 0:02:49]}  O-O {[%clk 0:02:59]} 8. Rb1 {[%clk 0:02:47]}  e5 {[%clk 0:02:58]} 9. Bd2 {[%clk 0:02:44]}  Qe7 {[%clk 0:02:52]} 10. b4 {[%clk 0:02:42]}  h6 {[%clk 0:02:47]} 11. Ne1 {[%clk 0:02:30]}  Kh7 {[%clk 0:02:36]} 12. Nc2 {[%clk 0:02:24]}  Be6 {[%clk 0:02:29]} 13. b5 {[%clk 0:02:22]}  e4 {[%clk 0:02:27]} 14. bxc6 {[%clk 0:02:01]}  Nxc6 {[%clk 0:02:24]} 15. dxe4 {[%clk 0:02:01]}  fxe4 {[%clk 0:02:23]} 16. Ne3 {[%clk 0:01:52]}  Qf7 {[%clk 0:02:19]} 17. Ned5 {[%clk 0:01:41]}  Ne5 {[%clk 0:01:57]} 18. Nxf6+ {[%clk 0:01:30]}  Bxf6 {[%clk 0:01:43]} 19. Nxe4 {[%clk 0:01:29]}  Rab8 {[%clk 0:01:37]} 20. Nxd6 {[%clk 0:01:24]}  Qg7 {[%clk 0:01:19]} 21. Nxb7 {[%clk 0:01:07]}  Nxc4 {[%clk 0:01:15]} 22. Bf4 {[%clk 0:01:05]}  Be5 {[%clk 0:01:07]} 23. Bxe5 {[%clk 0:01:02]}  Qxe5 {[%clk 0:01:08]} 24. Qa4 {[%clk 0:00:49]}  Rf7 {[%clk 0:01:03]} 25. Rfd1 {[%clk 0:00:39]}  Rbf8 {[%clk 0:01:00]} 26. Bf3 {[%clk 0:00:30]}  Nb2 {[%clk 0:00:50]} 27. Qd4 {[%clk 0:00:22]}  Qxd4 {[%clk 0:00:49]} 28. Rxd4 {[%clk 0:00:22]}  Nc4 {[%clk 0:00:49]} 29. Nd6 {[%clk 0:00:21]}  Nxd6 {[%clk 0:00:49]} 30. Rxd6 {[%clk 0:00:22]}  Bxa2 {[%clk 0:00:49]} 31. Ra1 {[%clk 0:00:22]}  Bc4 {[%clk 0:00:49]} 32. Rad1 {[%clk 0:00:17]}  a6 {[%clk 0:00:44]} 33. Rd7 {[%clk 0:00:17]}  Kg7 {[%clk 0:00:40]} 34. Rxf7+ {[%clk 0:00:17]}  Rxf7 {[%clk 0:00:41]} 35. Rc1 {[%clk 0:00:18]}  Bb5 {[%clk 0:00:40]} 36. Kg2 {[%clk 0:00:17]}  Re7 {[%clk 0:00:38]} 37. e3 {[%clk 0:00:17]}  Bd3 {[%clk 0:00:38]} 38. Ra1 {[%clk 0:00:17]}  Rf7 {[%clk 0:00:37]} 39. Bd1 {[%clk 0:00:17]}  Be4+ {[%clk 0:00:36]} 40. f3 {[%clk 0:00:17]}  Bd3 {[%clk 0:00:37]} 41. e4 {[%clk 0:00:17]}  Rb7 {[%clk 0:00:36]} 42. Ra3 {[%clk 0:00:17]}  Rb2+ {[%clk 0:00:35]} 43. Kg1 {[%clk 0:00:15]}  Bb5 {[%clk 0:00:31]} 44. Ra1 {[%clk 0:00:16]}  Rd2 {[%clk 0:00:27]} 45. Ba4 {[%clk 0:00:16]}  Be2 {[%clk 0:00:25]} 46. Kf2 {[%clk 0:00:15]}  Bc4+ {[%clk 0:00:26]} 47. Ke3 {[%clk 0:00:16]}  Rxh2 {[%clk 0:00:19]} 48. Rc1 {[%clk 0:00:15]}  Bb5 {[%clk 0:00:17]} 49. Bxb5 {[%clk 0:00:14]}  axb5 {[%clk 0:00:18]} 50. Rb1 {[%clk 0:00:15]}  h5 {[%clk 0:00:12]} 51. Rxb5 {[%clk 0:00:14]}  Rg2 {[%clk 0:00:12]} 52. Kf4 {[%clk 0:00:14]}  Kh6 {[%clk 0:00:13]} 53. e5 {[%clk 0:00:14]}  Re2 {[%clk 0:00:10]} 54. Rb6 {[%clk 0:00:13]}  Re1 {[%clk 0:00:07]} 55. e6 {[%clk 0:00:14]}  Kg7 {[%clk 0:00:08]} 56. Kg5 {[%clk 0:00:14]}  Re5+ {[%clk 0:00:07]} 57. Kh4 {[%clk 0:00:14]}  Kf6 {[%clk 0:00:07]} 58. f4 {[%clk 0:00:14]}  Re1 {[%clk 0:00:06]} 59. e7+ {[%clk 0:00:14]}  Kf5 {[%clk 0:00:06]} 60. Rb7 {[%clk 0:00:12]}  Rh1# {[%clk 0:00:04]} 0-1


[Site "https://www.chess.com"]

[Event "Titled Tuesday Blitz February 15 Late 2022"]
[White "Nilsson, Joakim"]
[Black "Szpar, Milosz"]
[WhiteFideId "1723383"]
[BlackFideId "1184989"]
[WhiteElo "2207"]
[BlackElo "2447"]
[Result "1/2-1/2"]
[Round "01"]
[TimeControl "180+1"]
[Date "2022.02.16"]
[WhiteClock "0:00:24"]
[BlackClock "0:00:05"]

1. d4 {[%clk 0:02:59]}  Nf6 {[%clk 0:02:58]} 2. Nf3 {[%clk 0:03:00]}  d5 {[%clk 0:02:50]} 3. c4 {[%clk 0:02:59]}  e6 {[%clk 0:02:48]} 4. Nc3 {[%clk 0:03:00]}  h6 {[%clk 0:02:42]} 5. Bf4 {[%clk 0:02:57]}  dxc4 {[%clk 0:02:32]} 6. e3 {[%clk 0:02:57]}  Nd5 {[%clk 0:02:30]} 7. Bxc4 {[%clk 0:02:57]}  Nxf4 {[%clk 0:02:30]} 8. exf4 {[%clk 0:02:57]}  Bd6 {[%clk 0:02:29]} 9. g3 {[%clk 0:02:54]}  O-O {[%clk 0:02:29]} 10. O-O {[%clk 0:02:55]}  b6 {[%clk 0:02:26]} 11. Qe2 {[%clk 0:02:54]}  Bb7 {[%clk 0:02:26]} 12. Rad1 {[%clk 0:02:55]}  Nd7 {[%clk 0:02:25]} 13. Ne5 {[%clk 0:02:55]}  Nf6 {[%clk 0:02:19]} 14. Rfe1 {[%clk 0:02:54]}  a6 {[%clk 0:02:15]} 15. a3 {[%clk 0:02:53]}  b5 {[%clk 0:02:15]} 16. Ba2 {[%clk 0:02:53]}  c6 {[%clk 0:02:11]} 17. Bb1 {[%clk 0:02:50]}  Qc7 {[%clk 0:02:05]} 18. Qc2 {[%clk 0:02:48]}  c5 {[%clk 0:01:59]} 19. Ng4 {[%clk 0:02:48]}  Rfe8 {[%clk 0:01:50]} 20. Nxf6+ {[%clk 0:02:47]}  gxf6 {[%clk 0:01:51]} 21. Qh7+ {[%clk 0:02:46]}  Kf8 {[%clk 0:01:52]} 22. Qxh6+ {[%clk 0:02:47]}  Ke7 {[%clk 0:01:52]} 23. d5 {[%clk 0:02:43]}  Rh8 {[%clk 0:01:19]} 24. Qg7 {[%clk 0:02:42]}  e5 {[%clk 0:01:10]} 25. fxe5 {[%clk 0:02:39]}  fxe5 {[%clk 0:01:09]} 26. Ne4 {[%clk 0:02:31]}  Rag8 {[%clk 0:00:57]} 27. Qf6+ {[%clk 0:02:30]}  Kd7 {[%clk 0:00:57]} 28. Nxd6 {[%clk 0:02:20]}  Qxd6 {[%clk 0:00:57]} 29. Qxf7+ {[%clk 0:02:20]}  Kc8 {[%clk 0:00:56]} 30. Qe6+ {[%clk 0:02:10]}  Qxe6 {[%clk 0:00:56]} 31. dxe6 {[%clk 0:02:11]}  Rxh2 {[%clk 0:00:56]} 32. Be4 {[%clk 0:01:53]}  Rgh8 {[%clk 0:00:53]} 33. Bxb7+ {[%clk 0:01:38]}  Kxb7 {[%clk 0:00:54]} 34. e7 {[%clk 0:01:34]}  Rh1+ {[%clk 0:00:48]} 35. Kg2 {[%clk 0:01:35]}  R1h2+ {[%clk 0:00:49]} 36. Kf3 {[%clk 0:01:35]}  Re8 {[%clk 0:00:48]} 37. Rd7+ {[%clk 0:01:33]}  Kc6 {[%clk 0:00:48]} 38. Red1 {[%clk 0:01:33]}  b4 {[%clk 0:00:46]} 39. a4 {[%clk 0:01:33]}  Rh6 {[%clk 0:00:43]} 40. Ke4 {[%clk 0:01:31]}  Re6 {[%clk 0:00:42]} 41. R1d5 {[%clk 0:01:26]}  R8xe7 {[%clk 0:00:37]} 42. Rxe7 {[%clk 0:01:25]}  Rxe7 {[%clk 0:00:38]} 43. Rxe5 {[%clk 0:01:25]}  Rg7 {[%clk 0:00:29]} 44. Re6+ {[%clk 0:01:23]}  Kb7 {[%clk 0:00:28]} 45. Kd5 {[%clk 0:01:21]}  Rf7 {[%clk 0:00:19]} 46. f4 {[%clk 0:01:17]}  Rg7 {[%clk 0:00:19]} 47. Re3 {[%clk 0:01:15]}  Kb6 {[%clk 0:00:20]} 48. Re6+ {[%clk 0:01:10]}  Ka5 {[%clk 0:00:20]} 49. Re3 {[%clk 0:01:09]}  Kxa4 {[%clk 0:00:20]} 50. Kxc5 {[%clk 0:01:09]}  a5 {[%clk 0:00:21]} 51. b3+ {[%clk 0:01:05]}  Ka3 {[%clk 0:00:21]} 52. Kb6 {[%clk 0:01:06]}  a4 {[%clk 0:00:19]} 53. bxa4+ {[%clk 0:01:06]}  Kxa4 {[%clk 0:00:20]} 54. f5 {[%clk 0:01:05]}  b3 {[%clk 0:00:18]} 55. Re4+ {[%clk 0:00:34]}  Ka3 {[%clk 0:00:18]} 56. g4 {[%clk 0:00:34]}  b2 {[%clk 0:00:17]} 57. Re3+ {[%clk 0:00:33]}  Kb4 {[%clk 0:00:12]} 58. Re4+ {[%clk 0:00:33]}  Kc3 {[%clk 0:00:12]} 59. Re3+ {[%clk 0:00:32]}  Kc4 {[%clk 0:00:08]} 60. Re4+ {[%clk 0:00:30]}  Kc3 {[%clk 0:00:08]} 61. Re3+ {[%clk 0:00:31]}  Kd2 {[%clk 0:00:08]} 62. Rb3 {[%clk 0:00:30]}  Kc2 {[%clk 0:00:06]} 63. Rxb2+ {[%clk 0:00:19]}  Kxb2 {[%clk 0:00:07]} 64. Kc5 {[%clk 0:00:20]}  Kc3 {[%clk 0:00:06]} 65. Kd6 {[%clk 0:00:21]}  Kd4 {[%clk 0:00:06]} 66. Ke6 {[%clk 0:00:21]}  Rxg4 {[%clk 0:00:05]} 67. f6 {[%clk 0:00:22]}  Re4+ {[%clk 0:00:05]} 68. Kd7 {[%clk 0:00:22]}  Rf4 {[%clk 0:00:04]} 69. Ke7 {[%clk 0:00:21]}  Re4+ {[%clk 0:00:04]} 70. Kd7 {[%clk 0:00:21]}  Ke5 {[%clk 0:00:04]} 71. f7 {[%clk 0:00:21]}  Rd4+ {[%clk 0:00:05]} 72. Ke7 {[%clk 0:00:22]}  Ra4 {[%clk 0:00:03]} 73. f8=Q {[%clk 0:00:22]}  Ra7+ {[%clk 0:00:04]} 74. Ke8 {[%clk 0:00:22]}  Ra8+ {[%clk 0:00:04]} 75. Kf7 {[%clk 0:00:23]}  Rxf8+ {[%clk 0:00:05]} 76. Kxf8 {[%clk 0:00:24]} 1/2-1/2


[Site "https://www.chess.com"]

[Event "Titled Tuesday Blitz February 15 Late 2022"]
[White "Novikova, Galina"]
[Black "Wieczorek, Oskar"]
[WhiteFideId "4157095"]
[BlackFideId "1133950"]
[WhiteElo "1863"]
[BlackElo "2319"]
[Result "0-1"]
[Round "01"]
[TimeControl "180+1"]
[Date "2022.02.16"]
[WhiteClock "0:01:10"]
[BlackClock "0:00:52"]

1. e4 {[%clk 0:03:00]}  c5 {[%clk 0:02:58]} 2. Nf3 {[%clk 0:03:00]}  g6 {[%clk 0:02:59]} 3. d4 {[%clk 0:03:00]}  cxd4 {[%clk 0:03:00]} 4. Nxd4 {[%clk 0:03:01]}  Nc6 {[%clk 0:02:59]} 5. Nc3 {[%clk 0:03:01]}  Bg7 {[%clk 0:02:59]} 6. Be3 {[%clk 0:03:02]}  Nf6 {[%clk 0:02:59]} 7. Nxc6 {[%clk 0:03:01]}  bxc6 {[%clk 0:02:58]} 8. e5 {[%clk 0:03:02]}  Ng8 {[%clk 0:02:59]} 9. Bd4 {[%clk 0:03:02]}  Nh6 {[%clk 0:02:50]} 10. e6 {[%clk 0:03:02]}  O-O {[%clk 0:02:15]} 11. Bxg7 {[%clk 0:02:58]}  Kxg7 {[%clk 0:02:15]} 12. exd7 {[%clk 0:02:58]}  Qxd7 {[%clk 0:02:14]} 13. Qxd7 {[%clk 0:02:57]}  Bxd7 {[%clk 0:02:15]} 14. O-O-O {[%clk 0:02:58]}  Be6 {[%clk 0:02:14]} 15. f3 {[%clk 0:02:54]}  Nf5 {[%clk 0:02:13]} 16. Ba6 {[%clk 0:02:51]}  Rad8 {[%clk 0:02:06]} 17. Rhe1 {[%clk 0:02:38]}  h5 {[%clk 0:01:53]} 18. a4 {[%clk 0:02:35]}  h4 {[%clk 0:01:51]} 19. b3 {[%clk 0:02:34]}  h3 {[%clk 0:01:50]} 20. g3 {[%clk 0:02:27]}  Rxd1+ {[%clk 0:01:44]} 21. Rxd1 {[%clk 0:02:25]}  Ne3 {[%clk 0:01:33]} 22. Rd2 {[%clk 0:02:19]}  g5 {[%clk 0:01:25]} 23. Ne4 {[%clk 0:02:13]}  g4 {[%clk 0:01:19]} 24. fxg4 {[%clk 0:02:12]}  Bxg4 {[%clk 0:01:15]} 25. Bb7 {[%clk 0:01:43]}  Bf3 {[%clk 0:00:55]} 26. Ng5 {[%clk 0:01:36]}  Bg2 {[%clk 0:00:53]} 27. Ba6 {[%clk 0:01:20]}  Kg6 {[%clk 0:00:53]} 28. Nxh3 {[%clk 0:01:09]}  Bxh3 {[%clk 0:00:52]} 29. Rd7 {[%clk 0:01:10]}  Bxd7 {[%clk 0:00:52]} 0-1


[Site "https://www.chess.com"]

[Event "Titled Tuesday Blitz February 15 Late 2022"]
[White "Papasimakopoulos, Alexandros"]
[Black "Peatman, Carter"]
[WhiteFideId "4244125"]
[BlackFideId "2096480"]
[WhiteElo "2340"]
[BlackElo "2382"]
[Result "1-0"]
[Round "01"]
[TimeControl "180+1"]
[Date "2022.02.16"]
[WhiteClock "0:00:09"]
[BlackClock "0:00:21"]

1. d4 {[%clk 0:03:00]}  d5 {[%clk 0:02:58]} 2. c4 {[%clk 0:03:00]}  dxc4 {[%clk 0:02:59]} 3. Nf3 {[%clk 0:02:59]}  a6 {[%clk 0:02:53]} 4. e3 {[%clk 0:02:59]}  b5 {[%clk 0:02:52]} 5. a4 {[%clk 0:02:55]}  Bb7 {[%clk 0:02:51]} 6. b3 {[%clk 0:02:50]}  Nf6 {[%clk 0:02:42]} 7. bxc4 {[%clk 0:02:49]}  bxc4 {[%clk 0:02:42]} 8. Bxc4 {[%clk 0:02:50]}  e6 {[%clk 0:02:43]} 9. O-O {[%clk 0:02:50]}  Nbd7 {[%clk 0:02:33]} 10. Nc3 {[%clk 0:02:42]}  Be7 {[%clk 0:02:31]} 11. Ba3 {[%clk 0:02:18]}  O-O {[%clk 0:02:18]} 12. Bxe7 {[%clk 0:02:01]}  Qxe7 {[%clk 0:02:18]} 13. Rb1 {[%clk 0:02:01]}  Rab8 {[%clk 0:02:16]} 14. Qe2 {[%clk 0:01:56]}  Qd6 {[%clk 0:01:52]} 15. Rfc1 {[%clk 0:01:44]}  c5 {[%clk 0:01:50]} 16. Rd1 {[%clk 0:01:38]}  Qc7 {[%clk 0:01:40]} 17. Bxa6 {[%clk 0:01:12]}  Bxa6 {[%clk 0:01:40]} 18. Qxa6 {[%clk 0:01:12]}  Rxb1 {[%clk 0:01:38]} 19. Nxb1 {[%clk 0:01:07]}  cxd4 {[%clk 0:01:37]} 20. Nxd4 {[%clk 0:01:06]}  Ne5 {[%clk 0:01:28]} 21. h3 {[%clk 0:01:02]}  Nd5 {[%clk 0:01:26]} 22. Na3 {[%clk 0:00:49]}  Qc3 {[%clk 0:01:18]} 23. Nab5 {[%clk 0:00:45]}  Qb2 {[%clk 0:01:16]} 24. Nd6 {[%clk 0:00:38]}  Nc3 {[%clk 0:01:01]} 25. Rf1 {[%clk 0:00:36]}  Qa2 {[%clk 0:00:43]} 26. a5 {[%clk 0:00:31]}  h6 {[%clk 0:00:39]} 27. Qa7 {[%clk 0:00:29]}  Nd3 {[%clk 0:00:32]} 28. N6b5 {[%clk 0:00:21]}  Ne4 {[%clk 0:00:27]} 29. f3 {[%clk 0:00:16]}  Ng3 {[%clk 0:00:24]} 30. Rd1 {[%clk 0:00:13]}  Qf2+ {[%clk 0:00:24]} 31. Kh2 {[%clk 0:00:14]}  Nf1+ {[%clk 0:00:24]} 32. Rxf1 {[%clk 0:00:13]}  Qxf1 {[%clk 0:00:24]} 33. Qc7 {[%clk 0:00:10]}  Qe1 {[%clk 0:00:19]} 34. e4 {[%clk 0:00:09]}  Qxa5 {[%clk 0:00:19]} 35. Qxa5 {[%clk 0:00:08]}  Nc5 {[%clk 0:00:19]} 36. Qc3 {[%clk 0:00:07]}  Nd7 {[%clk 0:00:19]} 37. Nc6 {[%clk 0:00:07]}  Nf6 {[%clk 0:00:20]} 38. Ne7+ {[%clk 0:00:07]}  Kh7 {[%clk 0:00:20]} 39. Nd6 {[%clk 0:00:07]}  Nh5 {[%clk 0:00:20]} 40. e5 {[%clk 0:00:06]}  Nf4 {[%clk 0:00:20]} 41. Qd2 {[%clk 0:00:05]}  Ng6 {[%clk 0:00:21]} 42. Qd3 {[%clk 0:00:05]}  Ra8 {[%clk 0:00:20]} 43. Nxg6 {[%clk 0:00:06]}  fxg6 {[%clk 0:00:20]} 44. h4 {[%clk 0:00:06]}  Ra2 {[%clk 0:00:21]} 45. h5 {[%clk 0:00:06]}  Kg8 {[%clk 0:00:20]} 46. Qb3 {[%clk 0:00:05]}  Rxg2+ {[%clk 0:00:17]} 47. Kxg2 {[%clk 0:00:04]}  gxh5 {[%clk 0:00:18]} 48. Qxe6+ {[%clk 0:00:04]}  Kh7 {[%clk 0:00:19]} 49. Qf5+ {[%clk 0:00:05]}  Kg8 {[%clk 0:00:20]} 50. e6 {[%clk 0:00:05]}  Kh8 {[%clk 0:00:20]} 51. Qf7 {[%clk 0:00:06]}  Kh7 {[%clk 0:00:20]} 52. e7 {[%clk 0:00:07]}  h4 {[%clk 0:00:20]} 53. e8=Q {[%clk 0:00:08]}  h3+ {[%clk 0:00:21]} 54. Kh2 {[%clk 0:00:08]}  h5 {[%clk 0:00:21]} 55. Qg6# {[%clk 0:00:09]} 1-0


[Site "https://www.chess.com"]

[Event "Titled Tuesday Blitz February 15 Late 2022"]
[White "Paravyan, David"]
[Black "Musovic, Armin"]
[WhiteFideId "4194985"]
[BlackFideId "939935"]
[WhiteElo "2569"]
[BlackElo "2250"]
[Result "1-0"]
[Round "01"]
[TimeControl "180+1"]
[Date "2022.02.15"]
[WhiteClock "0:01:00"]
[BlackClock "0:00:13"]

1. e4 {[%clk 0:03:00]}  c6 {[%clk 0:02:55]} 2. d4 {[%clk 0:02:59]}  d5 {[%clk 0:02:56]} 3. e5 {[%clk 0:02:59]}  c5 {[%clk 0:02:57]} 4. Nf3 {[%clk 0:02:59]}  Nc6 {[%clk 0:02:57]} 5. dxc5 {[%clk 0:02:56]}  Bg4 {[%clk 0:02:56]} 6. Be3 {[%clk 0:02:52]}  e6 {[%clk 0:02:52]} 7. c3 {[%clk 0:02:52]}  Nge7 {[%clk 0:02:52]} 8. Qa4 {[%clk 0:02:47]}  Bxf3 {[%clk 0:02:51]} 9. gxf3 {[%clk 0:02:48]}  a6 {[%clk 0:02:52]} 10. f4 {[%clk 0:02:47]}  Nf5 {[%clk 0:02:51]} 11. b4 {[%clk 0:02:39]}  Nxe3 {[%clk 0:02:37]} 12. fxe3 {[%clk 0:02:38]}  Qh4+ {[%clk 0:02:38]} 13. Kd2 {[%clk 0:02:34]}  Qf2+ {[%clk 0:02:25]} 14. Be2 {[%clk 0:02:34]}  Be7 {[%clk 0:02:10]} 15. Na3 {[%clk 0:02:23]}  O-O {[%clk 0:02:07]} 16. Nc2 {[%clk 0:02:02]}  Rad8 {[%clk 0:02:00]} 17. Nd4 {[%clk 0:01:56]}  f6 {[%clk 0:01:37]} 18. Nxc6 {[%clk 0:01:35]}  bxc6 {[%clk 0:01:35]} 19. Qxc6 {[%clk 0:01:36]}  d4 {[%clk 0:01:20]} 20. cxd4 {[%clk 0:01:35]}  Kh8 {[%clk 0:01:10]} 21. Raf1 {[%clk 0:01:25]}  Qh4 {[%clk 0:00:52]} 22. Qxe6 {[%clk 0:01:21]}  fxe5 {[%clk 0:00:47]} 23. fxe5 {[%clk 0:01:20]}  Bg5 {[%clk 0:00:43]} 24. Rxf8+ {[%clk 0:01:18]}  Rxf8 {[%clk 0:00:44]} 25. Qg4 {[%clk 0:01:15]}  Qh6 {[%clk 0:00:37]} 26. Qe4 {[%clk 0:01:14]}  Rd8 {[%clk 0:00:30]} 27. Bd3 {[%clk 0:01:08]}  g6 {[%clk 0:00:21]} 28. h4 {[%clk 0:01:07]}  Be7 {[%clk 0:00:18]} 29. Kc3 {[%clk 0:01:07]}  Qg7 {[%clk 0:00:17]} 30. h5 {[%clk 0:01:07]}  g5 {[%clk 0:00:18]} 31. h6 {[%clk 0:01:07]}  Qf7 {[%clk 0:00:19]} 32. Rf1 {[%clk 0:01:07]}  Qg8 {[%clk 0:00:19]} 33. Bc4 {[%clk 0:01:03]}  Qg6 {[%clk 0:00:18]} 34. Qxg6 {[%clk 0:01:04]}  hxg6 {[%clk 0:00:18]} 35. Rf7 {[%clk 0:01:04]}  Bf8 {[%clk 0:00:17]} 36. e6 {[%clk 0:01:04]}  Bxh6 {[%clk 0:00:17]} 37. d5 {[%clk 0:01:04]}  Bg7+ {[%clk 0:00:16]} 38. Kb3 {[%clk 0:01:04]}  Re8 {[%clk 0:00:15]} 39. d6 {[%clk 0:01:04]}  g4 {[%clk 0:00:15]} 40. e7 {[%clk 0:01:04]}  g3 {[%clk 0:00:15]} 41. d7 {[%clk 0:01:03]}  Rg8 {[%clk 0:00:15]} 42. Rf1 {[%clk 0:01:01]}  g2 {[%clk 0:00:14]} 43. Rg1 {[%clk 0:01:01]}  Be5 {[%clk 0:00:13]} 44. Rxg2 {[%clk 0:01:00]}  Kg7 {[%clk 0:00:13]} 1-0


[Site "https://www.chess.com"]

[Event "Titled Tuesday Blitz February 15 Late 2022"]
[White "Petersson, Kjell"]
[Black "Tregubov, Pavel V."]
[WhiteFideId "1705148"]
[BlackFideId "4115341"]
[WhiteElo "2009"]
[BlackElo "2341"]
[Result "0-1"]
[Round "01"]
[TimeControl "180+1"]
[Date "2022.02.16"]
[WhiteClock "0:00:16"]
[BlackClock "0:01:38"]

1. d4 {[%clk 0:03:00]}  Nf6 {[%clk 0:02:59]} 2. Bf4 {[%clk 0:03:01]}  d5 {[%clk 0:02:57]} 3. e3 {[%clk 0:03:01]}  c5 {[%clk 0:02:58]} 4. c3 {[%clk 0:03:00]}  Nc6 {[%clk 0:02:58]} 5. Nd2 {[%clk 0:03:00]}  cxd4 {[%clk 0:02:55]} 6. exd4 {[%clk 0:03:00]}  Bf5 {[%clk 0:02:56]} 7. Qb3 {[%clk 0:02:57]}  Qc8 {[%clk 0:02:54]} 8. Ngf3 {[%clk 0:02:55]}  e6 {[%clk 0:02:54]} 9. Ne5 {[%clk 0:02:50]}  Be7 {[%clk 0:02:47]} 10. Bb5 {[%clk 0:02:40]}  O-O {[%clk 0:02:47]} 11. O-O {[%clk 0:02:38]}  a6 {[%clk 0:02:41]} 12. Be2 {[%clk 0:02:33]}  Nxe5 {[%clk 0:02:38]} 13. Bxe5 {[%clk 0:02:32]}  Qc6 {[%clk 0:02:22]} 14. Nf3 {[%clk 0:02:31]}  Nd7 {[%clk 0:02:20]} 15. Bg3 {[%clk 0:02:29]}  Bd6 {[%clk 0:02:19]} 16. Bxd6 {[%clk 0:02:20]}  Qxd6 {[%clk 0:02:18]} 17. Nh4 {[%clk 0:02:20]}  Be4 {[%clk 0:02:16]} 18. f3 {[%clk 0:02:10]}  Bg6 {[%clk 0:02:16]} 19. Nxg6 {[%clk 0:02:09]}  hxg6 {[%clk 0:02:15]} 20. Rad1 {[%clk 0:02:06]}  b5 {[%clk 0:02:15]} 21. a3 {[%clk 0:02:05]}  Nb6 {[%clk 0:02:14]} 22. Qb4 {[%clk 0:01:48]}  Qf4 {[%clk 0:02:07]} 23. b3 {[%clk 0:01:39]}  Rfc8 {[%clk 0:02:03]} 24. Qa5 {[%clk 0:01:32]}  Nd7 {[%clk 0:01:53]} 25. Rd3 {[%clk 0:01:29]}  Rc6 {[%clk 0:01:51]} 26. Qb4 {[%clk 0:01:23]}  Rac8 {[%clk 0:01:50]} 27. g3 {[%clk 0:01:16]}  Qc7 {[%clk 0:01:46]} 28. Rc1 {[%clk 0:01:12]}  Qb6 {[%clk 0:01:46]} 29. Kg2 {[%clk 0:01:08]}  a5 {[%clk 0:01:43]} 30. Qe7 {[%clk 0:01:08]}  Nf6 {[%clk 0:01:42]} 31. a4 {[%clk 0:00:58]}  b4 {[%clk 0:01:41]} 32. c4 {[%clk 0:00:21]}  R6c7 {[%clk 0:01:41]} 33. c5 {[%clk 0:00:20]}  Rxe7 {[%clk 0:01:39]} 34. cxb6 {[%clk 0:00:20]}  Rxc1 {[%clk 0:01:40]} 35. Rd2 {[%clk 0:00:17]}  Rb7 {[%clk 0:01:38]} 36. Bb5 {[%clk 0:00:16]} 0-1


[Site "https://www.chess.com"]